bitfinex-derivatives/quotes_ETHF0:USTF0_20251006
["timestamp","ask_amount","ask_price","bid_price","bid_amount"]
[1759737318718,0.7329,4533.0,4532.9,1.16207]
[1759737318916,0.9729,4533.2,4533.1,1.14546]
[1759737319924,0.222,4533.2,4533.1,2.07991265]
[1759737320422,0.7502,4533.5,4533.4,1.14542]
[1759737320722,0.9729,4533.5,4533.4,1.14542]
[1759737321321,1.1047,4533.5,4533.4,1.14542]
[1759737322221,0.8827,4533.5,4533.4,1.14542]
[1759737323124,0.8827,4533.5,4533.4,0.81162]
[1759737323318,0.8827,4533.5,4533.4,0.60293]
[1759737324224,0.8827,4533.5,4533.4,0.81163]
[1759737324426,0.8827,4533.5,4533.4,1.14543]
[1759737325724,0.7509,4533.5,4533.4,1.14543]
[1759737326826,0.5282,4533.5,4533.4,1.14543]
[1759737327124,0.5282,4533.9,4533.8,1.14539]
[1759737327525,0.5282,4533.9,4533.8,41.94539]
[1759737329524,0.00213022,4534.0,4533.8,41.61159]
[1759737329729,0.00213022,4534.0,4533.9,0.7485]
[1759737330225,0.53033022,4534.0,4533.9,0.9705]
[1759737330420,0.75303022,4534.0,4533.9,0.9705]
[1759737330620,0.53173022,4534.0,4533.9,0.9705]
[1759737330826,0.2213,4534.5,4534.4,1.14534]
[1759737331232,0.5282,4534.5,4534.4,1.14534]
[1759737331429,3.736,4534.8,4534.7,1.14532]
[1759737331726,0.3069,4534.7,4534.4,0.39684]
[1759737331934,0.8827,4534.5,4534.4,0.60284]
[1759737332732,0.8827,4534.5,4534.4,0.81154]
[1759737332932,0.8827,4534.5,4534.4,1.14534]
[1759737333429,0.5282,4534.5,4534.4,1.14534]
[1759737333632,3.96069344,4534.8,4534.7,0.7485]
[1759737334732,3.73799344,4534.8,4534.7,0.7485]
[1759737334927,0.53019344,4534.8,4534.7,0.7485]
[1759737336128,0.22329344,4534.8,4534.7,0.7485]
[1759737336335,0.3327,4536.4,4535.9,0.4153]
[1759737336531,0.2141,4536.5,4536.4,0.4153]
[1759737336728,0.2141,4536.5,4536.4,2.06062265]
[1759737336934,0.5468,4536.5,4536.4,2.06062265]
[1759737337130,0.2141,4536.5,4536.4,2.06062265]
[1759737337335,0.5468,4536.8,4536.7,1.12614]
[1759737337530,0.7653,4536.8,4536.7,0.4153]
[1759737337731,0.8894,4536.5,4536.4,0.43156403]
[1759737337937,0.8894,4536.5,4536.4,41.23156403]
[1759737338133,0.8894,4536.5,4536.4,41.62823403]
[1759737339325,0.7653,4536.5,4536.4,41.94243403]
[1759737339531,0.54876122,4536.8,4536.7,0.81194]
[1759737339834,0.76726122,4536.8,4536.7,1.12614]
[1759737340629,0.76726122,4536.8,4536.7,0.4153]
[1759737340934,0.21606122,4536.8,4536.7,0.7295]
[1759737341235,0.00196122,4536.8,4536.7,0.7295]
[1759737341436,0.54876122,4536.8,4536.7,0.7295]
[1759737342032,0.76726122,4536.8,4536.7,0.7295]
[1759737343532,0.4568,4536.5,4536.4,40.80246403]
[1759737343735,0.4568,4536.5,4536.4,41.11666403]
[1759737345034,0.4568,4536.5,4536.4,40.80246403]
[1759737346238,0.8894,4536.5,4536.4,0.00246403]
[1759737348836,0.3967,4536.0,4535.9,40.8]
[1759737349040,0.3967,4536.0,4534.0,0.1228]
[1759737349041,0.7555,4535.2,4535.1,1.14278]
[1759737349540,0.7555,4535.2,4535.1,41.94278]
[1759737349735,0.5363,4535.2,4535.1,41.94278]
[1759737349941,0.5363,4535.2,4535.1,41.94437969]
[1759737350541,0.222,4535.6,4535.5,0.746]
[1759737350740,0.2248,4535.8,4535.7,0.746]
[1759737350942,0.3115,4536.1,4536.0,0.2265]
[1759737351132,0.7555,4536.1,4536.0,0.746]
[1759737351336,0.8859,4536.0,4535.9,0.62321]
[1759737352546,0.8859,4536.0,4535.9,0.2265]
[1759737352941,0.444,4535.7,4535.6,0.746]
[1759737353242,0.7555,4535.7,4535.6,0.746]
[1759737353643,0.7555,4535.7,4535.6,1.14274]
[1759737354540,0.6611,4536.0,4535.9,0.39671]
[1759737354744,0.8859,4536.0,4535.9,0.39671]
[1759737354934,0.8859,4536.0,4535.9,0.62321]
[1759737355140,0.8859,4536.0,4535.9,1.14271]
[1759737356943,0.8859,4536.0,4535.9,0.2265]
[1759737357450,0.8859,4536.0,4535.9,0.746]
[1759737357749,0.7555,4536.0,4535.9,0.746]
[1759737359646,0.5363,4536.0,4535.9,0.746]
[1759737359851,1.1016,4536.5,4536.4,0.4337]
[1759737360251,1.1016,4536.5,4536.4,0.746]
[1759737360851,0.9775,4536.5,4536.4,0.746]
[1759737361345,0.222,4536.5,4536.4,0.746]
[1759737361547,0.9775,4536.5,4536.4,0.746]
[1759737361748,1.1079,4536.5,4536.4,0.4337]
[1759737362456,1.1079,4536.5,4536.4,0.746]
[1759737362646,1.1079,4536.5,4536.4,0.4337]
[1759737362850,0.9775,4536.5,4536.4,0.746]
[1759737363861,0.7555,4536.5,4536.4,0.746]
[1759737365158,0.7555,4536.5,4536.4,41.546]
[1759737365358,3.65376122,4536.8,4536.7,0.70894]
[1759737365554,3.65376122,4536.8,4536.7,1.14264]
[1759737365751,3.65376122,4536.8,4536.7,0.746]
[1759737365958,3.96526122,4536.8,4536.7,0.4337]
[1759737366259,0.4419,4536.5,4536.4,40.8]
[1759737366864,0.4419,4536.5,4536.4,41.1123]
[1759737367062,0.4419,4536.5,4536.4,40.8]
[1759737367762,0.8859,4536.5,4535.9,0.3123]
[1759737368058,0.7555,4536.4,4535.9,0.3123]
[1759737368265,0.6611,4536.0,4535.9,0.2265]
[1759737368461,0.8859,4536.0,4535.9,0.2265]
[1759737368662,0.8859,4536.0,4535.9,0.83041]
[1759737368861,0.8859,4536.0,4535.9,1.14271]
[1759737369264,0.00196122,4536.8,4536.7,0.83034]
[1759737369468,0.00196122,4536.8,4536.7,2.07569065]
[1759737369763,0.3115,4536.7,4536.6,0.39665]
[1759737369963,0.7555,4536.7,4536.6,0.39665]
[1759737370162,0.7555,4536.7,4536.6,0.62315]
[1759737370562,0.7555,4536.7,4536.6,0.2265]
[1759737372163,0.444,4536.7,4536.3,0.39667]
[1759737372364,0.444,4536.7,4535.5,1.11626]
[1759737372365,0.5363,4535.9,4535.8,44.3201]
[1759737372563,0.5363,4535.9,4535.8,44.71682]
[1759737373061,0.5363,4535.9,4535.8,44.3201]
[1759737377064,0.7555,4535.9,4535.8,3.2078]
[1759737377368,0.7555,4535.9,4535.8,3.4343]
[1759737377863,0.7555,4535.9,4535.8,0.2265]
[1759737378169,0.773,4535.6,4535.5,40.8]
[1759737379172,0.773,4535.6,4535.5,41.1399]
[1759737380369,0.9034,4536.5,4536.4,0.7762]
[1759737381368,0.773,4536.5,4536.4,0.7762]
[1759737381566,3.76946122,4536.8,4536.7,1.17284]
[1759737381766,0.56166122,4536.8,4536.7,1.17284]
[1759737381961,0.56166122,4536.8,4536.7,0.7762]
[1759737386371,0.00196122,4536.8,4536.7,1.55414163]
[1759737387377,0.34,4537.7,4537.6,0.39656]
[1759737387672,0.3463,4537.5,4537.4,0.73648]
[1759737387879,0.8996,4537.5,4537.4,0.96308]
[1759737388078,0.8996,4537.5,4537.4,0.2266]
[1759737388377,0.90146436,4537.5,4537.4,0.2266]
[1759737388677,0.90146436,4537.5,4537.4,0.7762]
[1759737388876,0.68176436,4537.5,4537.4,0.7762]
[1759737389079,0.90146436,4537.5,4537.4,0.7762]
[1759737389376,0.90146436,4537.5,4537.1,41.1399]
[1759737389585,0.433,4537.3,4537.2,0.2266]
[1759737389780,0.773,4537.3,4537.2,0.2266]
[1759737391675,0.1266,4537.0,4536.9,40.8]
[1759737391874,0.1266,4537.0,4536.4,0.96317]
[1759737391875,0.2197,4536.5,4536.4,0.96317]
[1759737392075,0.5597,4536.5,4536.4,1.17287]
[1759737392381,0.5597,4536.5,4536.4,41.97287]
[1759737396581,1.1,4537.0,4536.9,0.60412]
[1759737402278,1.1,4537.0,4536.9,0.81902]
[1759737402476,1.1,4537.0,4536.9,1.13402]
[1759737402675,1.1,4537.0,4536.9,0.81902]
[1759737404184,1.1,4537.0,4536.9,1.13402]
[1759737404483,0.222,4537.0,4536.9,1.13402]
[1759737405178,0.4408,4537.0,4536.9,1.13402]
[1759737405379,0.7579,4537.0,4536.9,1.13402]
[1759737405579,0.222,4537.0,4536.9,1.13402]
[1759737406580,0.2188,4537.3,4537.2,0.2075]
[1759737406784,0.7514,4537.3,4537.2,0.7374]
[1759737407282,0.3171,4537.3,4537.2,1.134]
[1759737407984,0.22386436,4537.5,4537.1,0.77794163]
[1759737407985,0.00186436,4537.5,4537.4,0.71168]
[1759737408182,0.00186436,4537.5,4537.4,1.91762163]
[1759737408380,0.32566436,4537.5,4537.4,1.91762163]
[1759737408581,0.32566436,4537.5,4537.4,42.71762163]
[1759737408786,0.00186436,4537.5,4537.4,42.71762163]
[1759737408986,0.00186436,4537.5,4537.4,45.92542163]
[1759737410789,0.00186436,4537.5,4537.4,50.92542163]
[1759737411885,0.00186436,4537.5,4537.4,45.92542163]
[1759737412079,0.45796436,4537.5,4537.4,44.4358]
[1759737412891,0.8729,4537.0,4536.9,0.2189]
[1759737414286,0.5283,4537.2,4537.1,0.7431]
[1759737414489,0.7406,4537.2,4537.1,0.7431]
[1759737415790,0.7406,4536.9,4536.8,0.2189]
[1759737417097,0.7406,4536.4,4536.3,0.39667]
[1759737417590,0.7406,4536.4,4536.3,0.61557]
[1759737418285,0.7406,4536.4,4536.3,1.13977]
[1759737418693,0.3238,4536.3,4536.1,44.0078]
[1759737418894,0.3238,4536.3,4536.2,0.2189]
[1759737419095,0.7406,4536.3,4536.2,1.13978]
[1759737420596,0.1323,4536.5,4536.4,0.428]
[1759737420597,0.5283,4536.5,4536.4,0.428]
[1759737420797,0.5283,4536.5,4536.4,0.7431]
[1759737421296,0.222,4536.6,4536.5,1.26406]
[1759737421492,0.7503,4537.2,4537.1,1.13971]
[1759737421686,0.9626,4537.2,4537.1,1.13971]
[1759737421886,0.9626,4537.2,4537.1,0.7431]
[1759737423095,0.9626,4537.2,4536.8,40.8]
[1759737423096,0.7406,4536.9,4536.8,41.1151]
[1759737423796,0.5283,4536.9,4536.8,41.1151]
[1759737423999,0.222,4537.0,4536.9,0.7431]
[1759737424295,0.7406,4537.4,4537.3,0.2189]
[1759737424495,0.9626,4537.4,4537.3,0.2189]
[1759737424691,1.03638548,4537.4,4537.3,0.2189]
[1759737425194,0.81438548,4537.4,4537.3,0.2189]
[1759737425395,1.03638548,4537.4,4537.3,0.2189]
[1759737426192,0.60208548,4537.4,4537.3,0.428]
[1759737426393,0.81438548,4537.4,4537.3,0.7431]
[1759737426701,0.81438548,4537.4,4537.3,0.428]
[1759737426998,1.21096548,4537.4,4537.2,0.39659]
[1759737427194,0.7406,4537.2,4537.0,3.5229]
[1759737427392,0.7406,4537.2,4537.1,0.82461]
[1759737427698,0.81438548,4537.2,4537.1,0.82461]
[1759737428400,0.81438548,4537.2,4537.1,1.13971]
[1759737429403,0.81438548,4537.2,4537.1,0.7431]
[1759737429995,0.7406,4536.9,4536.8,40.8]
[1759737430200,2.13717163,4536.9,4536.3,0.3151]
[1759737430601,2.13717163,4536.9,4536.7,0.39664]
[1759737430795,0.7406,4536.7,4536.6,0.2189]
[1759737430997,0.7406,4536.7,4536.6,0.61555]
[1759737431398,0.7406,4536.7,4536.6,0.2189]
[1759737431799,1.21103548,4536.7,4536.5,0.39665]
[1759737432103,0.8729,4536.5,4536.4,0.61556]
[1759737432311,0.7406,4536.5,4536.4,1.13976]
[1759737432905,0.81438548,4536.5,4536.4,1.13976]
[1759737434904,0.94668548,4536.5,4536.4,1.13976]
[1759737435299,0.94668548,4536.5,4536.4,0.82466]
[1759737435505,0.94668548,4536.5,4536.4,0.428]
[1759737436209,0.94668548,4536.5,4536.4,0.2189]
[1759737436706,0.94668548,4536.5,4536.4,0.428]
[1759737437305,0.94668548,4536.5,4536.4,0.2189]
[1759737437704,1.34335548,4536.5,4536.2,0.39668]
[1759737437906,1.14129,4536.1,4536.0,3.2078]
[1759737438209,0.5308,4535.6,4535.5,4.5154016]
[1759737438512,0.7446,4535.6,4535.5,0.2061]
[1759737438803,0.7446,4535.4,4535.2,0.39677]
[1759737439110,0.7446,4535.4,4535.3,41.0061]
[1759737439305,0.3181,4535.4,4535.3,41.3143]
[1759737440007,0.39188548,4535.4,4535.3,41.3143]
[1759737440210,0.39188548,4535.4,4535.3,41.49207527]
[1759737440404,0.39188548,4535.4,4535.3,41.0061]
[1759737440606,0.39188548,4535.4,4535.3,41.3143]
[1759737441612,0.39188548,4535.4,4535.3,0.7306]
[1759737442013,0.60458548,4535.4,4535.3,0.7306]
[1759737443909,0.81838548,4535.4,4535.3,0.7306]
[1759737447516,0.60458548,4535.4,4535.3,0.7306]
[1759737447819,0.07378548,4535.4,4535.3,1.6641368]
[1759737448019,0.07378548,4535.4,4535.3,0.7306]
[1759737448607,0.07378548,4535.4,4535.3,5.7306]
[1759737449226,0.07378548,4535.4,4535.3,46.5306]
[1759737451829,0.07378548,4535.4,4535.3,46.7526]
[1759737455228,0.07378548,4535.4,4535.3,47.6861368]
[1759737456934,0.07378548,4535.4,4535.3,47.4641368]
[1759737457131,0.07378548,4535.4,4535.3,47.6861368]
[1759737458432,0.07378548,4535.4,4535.3,42.6861368]
[1759737459938,0.5302,4536.4,4536.3,1.14328]
[1759737460431,0.7354,4536.4,4536.3,1.14328]
[1759737461631,0.5302,4536.9,4536.8,0.2184]
[1759737461836,0.7354,4536.9,4536.8,1.14323]
[1759737462537,0.5302,4536.9,4536.8,1.14323]
[1759737463131,0.7354,4536.9,4536.8,1.14323]
[1759737464433,0.7354,4536.9,4536.4,1.21365]
[1759737464434,0.1304,4536.5,4536.3,0.3111]
[1759737464730,0.2205,4535.6,4535.5,3.91565]
[1759737464937,0.7354,4535.6,4535.5,4.35115]
[1759737465138,0.7354,4535.6,4535.5,44.9754]
[1759737465538,0.7354,4535.6,4535.5,44.7544]
[1759737465739,0.7354,4535.6,4535.5,44.9754]
[1759737466038,0.7354,4535.6,4535.5,44.7544]
[1759737466238,0.7354,4535.6,4535.5,44.9754]
[1759737466440,0.7354,4535.6,4535.5,44.4433]
[1759737466939,0.7354,4535.6,4535.5,44.7544]
[1759737468043,0.7354,4535.6,4535.5,44.4433]
[1759737468241,0.7354,4535.6,4535.5,44.2262]
[1759737468441,0.7354,4535.6,4535.5,44.0078]
[1759737469436,0.7354,4535.6,4535.5,44.3389]
[1759737469641,0.7354,4535.6,4535.5,44.0078]
[1759737469839,0.7354,4535.6,4535.5,44.3389]
[1759737473048,0.6422,4536.0,4535.9,1.16811]
[1759737473249,0.7752,4536.0,4535.9,1.16811]
[1759737473440,1.0891,4536.0,4535.9,1.16811]
[1759737473744,0.8681,4536.0,4535.9,1.16811]
[1759737474050,0.521,4536.0,4535.9,1.16811]
[1759737474249,0.3139,4536.0,4535.9,1.16811]
[1759737474451,3.5217,4536.2,4536.1,0.4403]
[1759737474748,3.9429,4536.2,4536.1,0.2248]
[1759737474944,0.7351,4536.2,4536.1,0.7714]
[1759737477140,0.4212,4536.2,4535.8,0.39671]
[1759737477345,0.7351,4535.7,4535.6,1.38914]
[1759737477545,0.7351,4535.7,4535.6,1.16814]
[1759737481952,0.7351,4535.7,4535.6,0.62154]
[1759737482152,0.7351,4535.7,4535.6,0.95264]
[1759737482352,0.7351,4535.7,4535.6,1.16814]
[1759737482655,0.3401,4536.0,4535.9,0.83701]
[1759737482854,0.3401,4536.0,4535.9,1.16811]
[1759737483055,0.8681,4536.0,4535.9,1.16811]
[1759737484556,0.7351,4536.0,4535.9,1.16811]
[1759737485056,0.8681,4536.0,4535.9,1.16811]
[1759737485659,0.8681,4536.0,4535.9,0.4403]
[1759737485956,0.8681,4536.0,4535.9,0.2248]
[1759737486257,0.8681,4536.0,4535.9,0.7714]
[1759737486457,0.7351,4536.0,4535.9,0.7714]
[1759737487157,0.521,4536.0,4535.9,0.7714]
[1759737487350,0.3139,4536.0,4535.9,0.7714]
[1759737488858,0.4281,4536.3,4536.2,0.83698]
[1759737489058,0.4281,4536.3,4536.2,1.16808]
[1759737489352,0.742,4536.3,4536.2,1.16808]
[1759737489555,0.2071,4536.6,4536.5,0.39665]
[1759737489757,0.521,4536.6,4536.5,1.16805]
[1759737491556,0.521,4536.6,4536.5,0.7714]
[1759737491756,0.7351,4536.6,4536.5,0.4403]
[1759737491957,0.7351,4536.6,4536.5,0.2248]
[1759737492167,0.3471,4536.0,4535.9,0.7714]
[1759737492461,0.8681,4536.0,4535.9,0.7714]
[1759737492649,0.521,4536.0,4535.9,0.7714]
[1759737492850,0.521,4536.4,4536.1,0.39669]
[1759737493056,0.7351,4536.2,4536.1,0.2248]
[1759737493760,0.7351,4536.2,4536.1,0.5559]
[1759737494455,0.133,4536.0,4535.9,0.39671]
[1759737494650,0.7351,4535.6,4535.5,3.4326]
[1759737494854,0.7351,4535.6,4535.5,3.82935]
[1759737495260,0.7351,4535.6,4535.5,4.16045]
[1759737495756,0.4212,4535.2,4534.8,3.5389]
[1759737496060,1.13187,4535.2,4534.8,3.2078]
[1759737496256,1.13187,4535.2,4534.9,40.8]
[1759737497967,1.13187,4535.2,4534.9,41.19679]
[1759737498152,0.7351,4535.2,4535.0,0.39679]
[1759737498356,0.7351,4535.2,4535.1,0.22529969]
[1759737501758,0.7351,4535.2,4535.1,0.00159969]
[1759737502060,0.7731,4534.6,4534.5,0.39683]
[1759737502461,0.74303,4534.5,4534.1,0.5626]
[1759737502660,0.7731,4534.4,4534.3,0.62055]
[1759737502965,0.7731,4534.4,4534.3,41.42261483]
[1759737503464,0.7731,4534.4,4534.3,41.02576483]
[1759737504260,0.7731,4534.4,4534.3,42.14302345]
[1759737504464,0.5526,4534.4,4534.3,42.14302345]
[1759737504659,0.3346,4534.4,4534.3,42.14302345]
[1759737504867,3.7604,4534.7,4534.6,1.17062]
[1759737505857,0.7731,4534.7,4534.5,0.39683]
[1759737506264,1.16992,4534.7,4534.5,0.39683]
[1759737506864,0.9941,4534.6,4534.5,0.39683]
[1759737507065,0.5642,4534.5,4534.4,0.39684]
[1759737507265,0.8988,4534.5,4534.4,0.39684]
[1759737507468,0.8988,4534.5,4534.4,0.62054]
[1759737508365,0.5642,4534.5,4534.3,40.80206483]
[1759737508666,0.3346,4534.4,4534.3,40.80206483]
[1759737510269,0.3346,4534.4,4534.3,41.14096483]
[1759737511674,0.3346,4534.6,4534.5,0.7738]
[1759737511873,0.3346,4534.6,4534.5,1.55215862]
[1759737512374,0.5526,4534.6,4534.5,1.55215862]
[1759737514474,0.7731,4534.6,4534.5,0.7738]
[1759737514671,0.7317,4534.4,4534.3,0.00206483]
[1759737515073,0.7317,4534.4,4534.3,0.21756483]
[1759737515379,0.7317,4534.4,4534.3,0.74906483]
[1759737515873,0.6453,4534.8,4534.7,0.747]
[1759737516377,0.9527,4534.8,4534.7,0.747]
[1759737516874,0.3074,4534.8,4534.7,1.92217862]
[1759737517177,0.5245,4535.0,4534.9,1.1438]
[1759737518474,0.7317,4535.0,4534.9,1.1438]
[1759737519078,0.8548,4535.0,4534.9,1.1438]
[1759737519479,0.8548,4535.0,4534.9,0.747]
[1759737521388,0.2171,4534.5,4534.4,0.747]
[1759737521588,0.5245,4534.5,4534.4,1.14384]
[1759737521889,0.8548,4534.5,4534.4,1.14384]
[1759737523085,0.7317,4534.5,4534.4,1.14384]
[1759737524292,0.5245,4534.5,4534.4,1.14384]
[1759737525992,0.7317,4534.5,4534.4,1.14384]
[1759737528298,0.8588,4534.5,4534.4,1.14384]
[1759737528895,0.8588,4534.5,4534.4,0.82714]
[1759737529397,0.8588,4534.5,4534.4,1.15444]
[1759737529595,0.7317,4534.5,4534.4,1.15444]
[1759737529993,0.1231,4535.0,4534.9,0.3968]
[1759737530196,0.5534,4535.0,4534.9,1.1555]
[1759737530498,0.5534,4535.0,4534.9,0.7587]
[1759737530896,0.7633,4535.0,4534.9,0.7587]
[1759737531797,0.8904,4535.0,4534.9,0.7587]
[1759737531991,0.8904,4535.0,4534.9,0.4314]
[1759737534895,0.8904,4535.0,4534.9,0.7587]
[1759737535199,0.8904,4535.0,4534.9,0.2091]
[1759737535397,0.94671,4534.8,4534.7,0.2091]
[1759737535696,0.7633,4534.8,4534.7,0.2091]
[1759737538595,0.7633,4534.8,4534.7,0.7587]
[1759737541499,0.34,4535.0,4534.7,0.77835862]
[1759737541805,0.7633,4535.7,4535.6,0.7587]
[1759737542002,0.7633,4535.7,4535.6,0.4314]
[1759737542206,0.7633,4535.7,4535.6,41.2314]
[1759737542397,0.4233,4535.1,4535.0,1.20975862]
[1759737542705,0.4233,4535.1,4535.0,1.93384862]
[1759737542706,0.7633,4535.1,4535.0,1.93384862]
[1759737543006,0.7633,4535.1,4535.0,42.73384862]
[1759737543703,0.5534,4535.1,4535.0,42.73384862]
[1759737544597,0.2099,4534.5,4534.4,3.2078]
[1759737544899,0.2099,4534.5,4534.4,4.36334]
[1759737544900,0.7633,4534.5,4534.4,4.36334]
[1759737545202,0.7633,4534.5,4534.4,45.16334]
[1759737546407,0.5534,4534.9,4534.8,1.1555]
[1759737547811,0.7633,4534.9,4534.8,0.7587]
[1759737550606,0.5534,4534.9,4534.8,0.7587]
[1759737550809,0.7633,4534.9,4534.8,0.7587]
[1759737551903,0.7633,4534.9,4534.8,0.4314]
[1759737552304,0.4671,4534.5,4534.4,44.0078]
[1759737552502,0.4671,4534.5,4534.4,40.8]
[1759737554215,0.34,4534.5,4534.4,41.1273]
[1759737555310,0.39683,4534.6,4534.5,0.2091]
[1759737555506,0.5534,4534.6,4534.5,0.7587]
[1759737555907,0.7633,4534.6,4534.5,0.7587]
[1759737560015,0.7633,4534.6,4534.5,0.7517]
[1759737560317,0.5458,4534.8,4534.7,0.4285]
[1759737560509,0.7578,4534.8,4534.7,0.7488]
[1759737560709,0.9726,4534.8,4534.7,0.7488]
[1759737561511,0.5458,4534.8,4534.7,0.7488]
[1759737561715,0.7578,4534.8,4534.7,0.7488]
[1759737561912,0.9726,4534.8,4534.7,0.2175]
[1759737562713,0.84583,4534.5,4534.4,40.8]
[1759737563118,0.84583,4534.5,4534.4,41.1203]
[1759737563919,0.84583,4534.5,4534.4,40.8]
[1759737564520,1.36941,4534.8,4534.7,0.7488]
[1759737566018,0.9726,4534.8,4534.7,0.7488]
[1759737569618,0.7516,4534.8,4534.7,0.7488]
[1759737569820,0.9726,4534.8,4534.7,0.7488]
[1759737570728,0.7516,4534.8,4534.7,0.7488]
[1759737570915,0.9726,4534.8,4534.7,0.7488]
[1759737572615,0.7578,4534.8,4534.7,0.7488]
[1759737574422,0.82137,4535.3,4535.2,0.2266]
[1759737574625,1.04237,4535.3,4535.2,0.7869]
[1759737575021,1.37467,4535.3,4535.2,0.7869]
[1759737575223,0.9779,4535.3,4535.2,0.7869]
[1759737576720,0.9779,4535.3,4535.2,0.4493]
[1759737577121,0.7569,4535.3,4535.2,0.7869]
[1759737577319,0.9779,4535.3,4535.2,0.7869]
[1759737577523,0.7584,4535.3,4535.2,0.7869]
[1759737577924,0.9779,4535.3,4535.2,0.7869]
[1759737578520,0.7584,4535.3,4535.2,0.7869]
[1759737578721,0.221,4535.3,4535.2,0.7869]
[1759737580024,0.5533,4535.3,4535.2,0.7869]
[1759737580220,0.221,4535.3,4535.2,0.7869]
[1759737582022,0.7584,4535.3,4535.2,0.7869]
[1759737586125,0.9779,4535.3,4535.2,0.2266]
[1759737586323,0.5374,4534.5,4534.4,44.74224]
[1759737586523,0.5374,4534.5,4534.4,44.96324]
[1759737586826,0.39679,4535.0,4534.9,0.4493]
[1759737587019,0.93400317,4535.5,4535.4,1.18365]
[1759737587020,0.8842,4535.5,4535.4,1.18365]
[1759737587528,0.5374,4535.5,4535.4,1.18365]
[1759737588123,0.5374,4535.5,4535.4,41.98365]
[1759737589128,0.3323,4535.5,4535.4,41.98365]
[1759737589332,0.7465,4535.7,4535.6,1.14394]
[1759737589630,0.9689,4535.7,4535.6,1.14394]
[1759737589826,0.7479,4535.7,4535.6,1.14394]
[1759737591532,0.7479,4535.7,4535.6,0.7472]
[1759737591733,0.7479,4535.7,4535.6,0.4172]
[1759737591933,0.7479,4535.7,4535.6,0.7472]
[1759737593434,0.7479,4535.7,4535.6,0.2065]
[1759737594626,0.1289,4535.5,4535.4,41.13]
[1759737594827,0.443,4535.5,4535.4,41.13]
[1759737595229,0.3141,4535.5,4535.4,41.13]
[1759737595532,0.6548,4535.9,4535.8,1.14392]
[1759737595834,0.9689,4535.9,4535.8,1.14392]
[1759737596328,0.9689,4535.9,4535.5,0.33]
[1759737596529,0.2114,4535.6,4535.5,0.5365]
[1759737596732,1.14464,4535.6,4535.5,0.2065]
[1759737597032,0.443,4535.5,4535.4,40.8]
[1759737597234,0.443,4535.5,4535.4,41.13]
[1759737599529,0.443,4535.5,4535.4,0.33]
[1759737599731,0.8768,4535.5,4535.4,0.7472]
[1759737599933,0.8768,4535.5,4535.4,0.2065]
[1759737600232,0.5255,4535.5,4535.4,0.7472]
[1759737600436,0.221,4535.9,4535.7,1.14393]
[1759737600437,0.5255,4535.8,4535.7,1.14393]
[1759737600632,0.5255,4535.8,4535.7,0.7472]
[1759737601340,0.39672,4535.9,4535.7,0.7472]
[1759737601632,0.3141,4536.0,4535.9,0.7472]
[1759737601831,0.8768,4536.0,4535.9,0.2065]
[1759737602530,0.8768,4536.0,4535.9,0.7472]
[1759737602733,3.2078,4536.1,4536.0,0.3967]
[1759737602939,3.2078,4536.1,4536.0,1.2667]
[1759737603144,3.5219,4536.1,4536.0,1.2667]
[1759737603440,3.7333,4536.1,4536.0,1.2667]
[1759737603835,0.221,4536.2,4536.0,1.2667]
[1759737604030,0.1242,4536.5,4536.0,0.54]
[1759737605239,0.2114,4536.2,4536.1,0.2107]
[1759737605540,0.5255,4536.2,4536.1,41.94389]
[1759737606340,0.221,4536.5,4536.4,0.7472]
[1759737606642,0.221,4536.5,4536.4,3.955]
[1759737607233,3.33856436,4537.5,4536.5,0.5365]
[1759737607234,0.3483,4537.0,4536.5,0.5365]
[1759737607440,0.7479,4536.6,4536.5,0.7472]
[1759737607833,0.5255,4536.6,4536.5,0.7472]
[1759737609041,0.7479,4536.6,4536.5,0.7472]
[1759737610242,0.5597,4537.0,4536.9,0.81382]
[1759737610442,0.5255,4537.0,4536.9,1.14382]
[1759737611143,0.221,4537.4,4537.3,0.39659]
[1759737611346,0.7479,4537.4,4537.3,1.14379]
[1759737611547,0.5255,4537.4,4537.3,1.14379]
[1759737611846,0.4338,4536.7,4536.6,1.14385]
[1759737612047,0.3141,4537.0,4536.9,0.4172]
[1759737612247,0.7479,4537.4,4537.3,0.81378]
[1759737612446,0.7479,4537.4,4537.3,41.5472]
[1759737612743,0.7479,4537.4,4537.3,41.2172]
[1759737613644,0.7479,4537.4,4537.3,41.5472]
[1759737614348,0.7479,4537.4,4537.3,41.0065]
[1759737614540,0.39659,4537.3,4537.0,0.39661]
[1759737614852,0.7479,4537.1,4537.0,0.60311]
[1759737615052,0.7479,4537.1,4537.0,41.94381]
[1759737616456,0.5255,4537.1,4537.0,41.94381]
[1759737616654,0.3141,4537.1,4537.0,41.94381]
[1759737618258,0.5318,4537.4,4537.3,1.17229]
[1759737619656,3.20966436,4537.5,4537.4,0.7757]
[1759737619856,3.43066436,4537.5,4537.4,0.7757]
[1759737620056,3.96246436,4537.5,4537.4,0.7757]
[1759737620863,3.74146436,4537.5,4537.4,0.7757]
[1759737621163,3.43066436,4537.5,4537.4,0.7757]
[1759737622161,3.20966436,4537.5,4537.4,0.7757]
[1759737622858,0.00186436,4537.5,4537.4,0.7757]
[1759737623657,0.53366436,4537.5,4537.4,0.7757]
[1759737623855,0.00186436,4537.5,4537.4,0.7757]
[1759737624056,0.31666436,4537.5,4537.4,0.7757]
[1759737624260,0.00186436,4537.5,4537.4,0.7757]
[1759737624864,0.00186436,4537.5,4537.4,0.9967]